Workbook

Sheet 报废清单汇总
A1: 2024年2月固定资产报废清单
A2: 序号 | B2: 资产号 | C2: 设备名称 | D2: 开始提折旧时间 | E2: 原值 | F2: 累计折旧 | G2: 净值 | H2: 净残值(帐上取数) | I2: 使用年限 | J2: 截至上年年底已使用年限 | K2: 报废时间 | L2: 备注
A3: 154 | B3: 102000000036 | C3: 1#卧式铣床综合维修 | D3: 1996-03-01 | E3: 247,605.07 | F3: 222,844.56 | G3: =E3-F3 -> 24,760.51 | H3: =E3*0.1 -> 24,760.51 | I3: 10 | J3: =(K3-D3)/365-1 -> 27 | K3: 2023-12-15
A4: 153 | B4: 102000000038 | C4: 立式钻床综合维修 | D4: 1996-03-01 | E4: 40,785.12 | F4: 36,706.61 | G4: =E4-F4 -> 4,078.51 | H4: 4,078.51 | I4: 10 | J4: =(K4-D4)/365-1 -> 27 | K4: 2023-12-15
A5: 149 | B5: 102000000070 | C5: 远红外焊条两用机综合维修 | D5: 1996-03-01 | E5: 6,864.72 | F5: 6,178.25 | G5: =E5-F5 -> 686.47 | H5: 686.47 | I5: 10 | J5: 27 | K5: 2023-09-21
A6: 10 | B6: 102000001158 | C6: 1#热电循环水泵 | D6: 2005-01-01 | E6: 57,265.32 | F6: 51,538.79 | G6: 5726.532 | H6: 5,726.53 | I6: 10 | J6: 17 | K6: 2023-05-19
A7: 11 | B7: 102000001159 | C7: 2#热电循环水泵 | D7: 2005-01-01 | E7: 57,265.32 | F7: 51,538.79 | G7: 5726.532 | H7: 5,726.53 | I7: 10 | J7: 17 | K7: 2023-05-19
A8: 12 | B8: 102000001160 | C8: 3#热电循环水泵 | D8: 2005-01-01 | E8: 57,265.32 | F8: 51,538.79 | G8: 5726.532 | H8: 5,726.53 | I8: 10 | J8: 17 | K8: 2023-05-19
A9: 13 | B9: 102000001161 | C9: 4#热电循环水泵 | D9: 2005-01-01 | E9: 52,040.92 | F9: 46,836.83 | G9: 5,204.09 | H9: 5,204.09 | I9: 10 | J9: 17 | K9: 2023-05-19
A10: 8 | B10: 102000001162 | C10: 5#热电循环水泵 | D10: 2005-01-01 | E10: 52,040.92 | F10: 46,836.83 | G10: =E10-F10 -> 5,204.09 | H10: 5,204.09 | I10: 10 | J10: 17 | K10: 2023-03-27
A11: 151 | B11: 102000001179 | C11: 4#丝束循环水全自动过滤装置 | D11: 2005-01-01 | E11: 153,748.71 | F11: 138,373.84 | G11: 15,374.87 | H11: 15,374.87 | I11: 10 | J11: 18 | K11: 2023-12-12
A12: 2 | B12: 102000001194 | C12: 滤棒水分测试仪 | D12: 1999-03-01 | E12: 363,141.74 | F12: 326,827.57 | G12: 36,314.17 | H12: 36,314.17 | I12: 10 | J12: 23 | K12: 2023-02-07
A13: 4 | B13: 102000001197 | C13: 卷曲弹性仪 | D13: 1996-03-01 | E13: 6,188.00 | F13: 5,569.20 | G13: 618.80 | H13: 618.80 | I13: 10 | J13: 26 | K13: 2023-02-07
A14: 152 | B14: 102000001756 | C14: 2#锅炉后拱 | D14: 1996-03-01 | E14: 140,000.00 | F14: 126,000.00 | G14: 14,000.00 | H14: 14,000.00 | I14: 15 | J14: 27 | K14: 2023-12-12
A15: 146 | B15: 102000002115 | C15: 1#锅炉炉排 | D15: 2005-01-01 | E15: 232,020.99 | F15: 208,818.89 | G15: 23,202.10 | H15: 23,202.10 | I15: 10 | J15: 18 | K15: 2023-08-30
A16: 143 | B16: 103000000090 | C16: 海尔空调—电气主控室1# | D16: 2006-08-01 | E16: 8,700.00 | F16: 7,830.00 | G16: 870.00 | H16: 870.00 | I16: 5 | J16: 16 | K16: 2023-08-07
A17: 144 | B17: 103000000091 | C17: 海尔空调—电气主控室2# | D17: 2006-08-01 | E17: 8,700.00 | F17: 7,830.00 | G17: 870.00 | H17: 870.00 | I17: 5 | J17: 16 | K17: 2023-08-07
A18: 147 | B18: 103000000207 | C18: 沙发（带茶几）—餐厅 | D18: 2005-06-01 | E18: 2,300.00 | F18: 2,070.00 | G18: 230.00 | H18: 230.00 | I18: 5 | J18: 17 | K18: 2023-09-21
A19: 148 | B19: 103000000208 | C19: 沙发（带茶几）—餐厅 | D19: 2005-06-01 | E19: 2,300.00 | F19: 2,070.00 | G19: 230.00 | H19: 230.00 | I19: 5 | J19: 17 | K19: 2023-09-21
A20: 17 | B20: 103000000279 | C20: 报废员工活动中心沙发 | D20: 2003-11-01 | E20: 2,780.00 | F20: 2,502.00 | G20: 278.00 | H20: 278.00 | I20: 8 | J20: 19 | K20: 2023-07-05
A21: 150 | B21: 103000000328 | C21: 豆腐豆浆机－餐厅厨房 | D21: 2008-09-01 | E21: 8,730.00 | F21: 7,857.00 | G21: 873.00 | H21: 873.00 | I21: 5 | J21: 14 | K21: 2023-09-28
A22: 145 | B22: 103000000356 | C22: 海尔空调—总降压站一楼 | D22: 2006-07-01 | E22: 13,783.25 | F22: 12,404.92 | G22: 1,378.33 | H22: 1,378.33 | I22: 5 | J22: 16 | K22: 2023-08-07
A23: 9 | B23: 103000000395 | C23: 空气等离子切割机 | D23: 1997-03-01 | E23: 13,400.00 | F23: 12,060.00 | G23: 1,340.00 | H23: 1,340.00 | I23: 5 | J23: 25 | K23: 2023-03-28
A24: 3 | B24: 103000000601 | C24: 丝束快速水分测试仪 | D24: 2002-03-01 | E24: 41,882.70 | F24: 37,694.43 | G24: 4,188.27 | H24: 4,188.27 | I24: 5 | J24: 20 | K24: 2023-02-07
A25: 6 | B25: 103000000617 | C25: 硅酸根分析仪 | D25: 2007-01-02 | E25: 11,456.00 | F25: 10,310.40 | G25: 1,145.60 | H25: 1,145.60 | I25: 5 | J25: 15 | K25: 2023-02-07
A26: 7 | B26: 103000000618 | C26: 磷酸根分析仪 | D26: 2007-11-01 | E26: 11,456.00 | F26: 10,310.40 | G26: 1,145.60 | H26: 1,145.60 | I26: 5 | J26: 14 | K26: 2023-02-07
A27: 18 | B27: 103000000689 | C27: 电动送餐车 | D27: 2009-12-01 | E27: 65,200.00 | F27: 58,680.00 | G27: 6,520.00 | H27: 6,520.00 | I27: 5 | J27: 13 | K27: 2023-07-05
A28: 5 | B28: 103000000730 | C28: BOD测试仪 | D28: 2011-11-01 | E28: 33,333.33 | F28: 30,000.00 | G28: 3,333.33 | H28: 3,333.33 | I28: 5 | J28: 10 | K28: 2023-02-07
A29: 155 | B29: 103000000904 | C29: 万向摇臂钻床 | D29: 2013-12-01 | E29: 93,162.41 | F29: 83,846.17 | G29: 9,316.24 | H29: 9,316.24 | I29: 5 | J29: 9 | K29: 2023-12-15
A30: 1 | B30: 103000000912 | C30: 自动洗衣机（2#） | D30: 2014-03-01 | E30: 7,264.96 | F30: 6,538.46 | G30: 726.50 | H30: 726.50 | I30: 5 | J30: 8 | K30: 2023-01-03
A31: 20 | B31: 105000000022 | C31: 1#防火墙 | D31: 2006-10-01 | E31: 137,600.00 | F31: 123,840.00 | G31: 13,760.00 | H31: 13,760.00 | I31: 5 | J31: 16 | K31: 2023-07-10
A32: 21 | B32: 105000000185 | C32: 网络测试仪 | D32: 2005-04-01 | E32: 5,800.00 | F32: 5,220.00 | G32: 580.00 | H32: 580.00 | I32: 5 | J32: 17 | K32: 2023-07-10
A33: 19 | B33: 105000000439 | C33: 锅炉烟气在线分析仪 | D33: 2014-05-01 | E33: 104,673.26 | F33: 94,205.93 | G33: 10,467.33 | H33: 10,467.33 | I33: 8 | J33: 8 | K33: 2023-07-05
A34: 15 | B34: 105000000510 | C34: 2#炉引风机变频器柜 | D34: 2005-01-01 | E34: 327,628.40 | F34: 294,865.56 | G34: 32,762.84 | H34: 32,762.84 | I34: 6 | J34: 17 | K34: 2023-06-09
A35: 16 | B35: 105000000511 | C35: 3#炉引风机变频器柜 | D35: 2005-01-01 | E35: 327,628.40 | F35: 294,865.56 | G35: 32,762.84 | H35: =E35*0.1 -> 32,762.84 | I35: 6 | J35: 17 | K35: 2023-06-09
A36: 14 | B36: 105000000948 | C36: 电视监控系统 | D36: 2007-08-01 | E36: 729,085.20 | F36: 656,176.68 | G36: 72,908.52 | H36: 72,908.52 | I36: 14 | J36: 15 | K36: 2023-06-09
A37: 22 | B37: 105000000997 | C37: 三纤信息化网络互联设备 | D37: 2010-04-01 | E37: 1,130,598.27 | F37: 1,017,538.44 | G37: 113,059.83 | H37: 113,059.83 | I37: 5 | J37: 12 | K37: 2023-07-10
A38: 23 | B38: 105000001026 | C38: 交换器2918 | D38: 2010-08-01 | E38: 4,871.79 | F38: 4,384.61 | G38: 487.18 | H38: 487.18 | I38: 5 | J38: 12 | K38: 2023-07-10
A39: 24 | B39: 105000001027 | C39: 交换器2918 | D39: 2010-08-01 | E39: 4,871.80 | F39: 4,384.62 | G39: 487.18 | H39: 487.18 | I39: 5 | J39: 12 | K39: 2023-07-10
A40: 25 | B40: 105000001046 | C40: DELL计算机 (信息部) | D40: 2010-09-01 | E40: 8,290.60 | F40: 7,461.54 | G40: 829.06 | H40: 829.06 | I40: 5 | J40: 12 | K40: 2023-07-10
A41: 26 | B41: 105000001047 | C41: DELL计算机 (信息部) | D41: 2010-09-01 | E41: 8,290.59 | F41: 7,461.53 | G41: 829.06 | H41: 829.06 | I41: 5 | J41: 12 | K41: 2023-07-10
A42: 27 | B42: 105000001054 | C42: 趋势防病毒网关 | D42: 2011-01-01 | E42: 59,497.44 | F42: 53,547.70 | G42: =E42-F42 -> 5,949.74 | H42: 5,949.74 | I42: 5 | J42: 12 | K42: 2023-07-10
A43: 28 | B43: 105000001351 | C43: 视频会议系统 | D43: 2015-06-01 | E43: 166,604.50 | F43: 149,944.05 | G43: 16,660.45 | H43: 16,660.45 | I43: 5 | J43: 7 | K43: 2023-07-10
A44: 29 | B44: 105000001367 | C44: 台式机（王学俊）新 | D44: 2015-08-01 | E44: 6,153.85 | F44: 5,538.46 | G44: 615.39 | H44: 615.39 | I44: 5 | J44: 7 | K44: 2023-07-10
A45: 30 | B45: 105000001368 | C45: 台式机（杨磊）新 | D45: 2015-08-01 | E45: 6,153.85 | F45: 5,538.46 | G45: 615.39 | H45: 615.39 | I45: 5 | J45: 7 | K45: 2023-07-10
A46: 31 | B46: 105000001369 | C46: 台式机（电气运行）新 | D46: 2015-08-01 | E46: 6,153.85 | F46: 5,538.46 | G46: 615.39 | H46: 615.39 | I46: 5 | J46: 7 | K46: 2023-07-10
A47: 32 | B47: 105000001370 | C47: 台式机（彭翎）新 | D47: 2015-08-01 | E47: 6,153.85 | F47: 5,538.46 | G47: 615.39 | H47: 615.39 | I47: 5 | J47: 7 | K47: 2023-07-10
A48: 33 | B48: 105000001371 | C48: 台式机（李亮波）新 | D48: 2015-08-01 | E48: 6,153.85 | F48: 5,538.46 | G48: 615.39 | H48: 615.39 | I48: 5 | J48: 7 | K48: 2023-07-10
A49: 34 | B49: 105000001372 | C49: 台式机（杨如艳）新 | D49: 2015-08-01 | E49: 6,153.85 | F49: 5,538.46 | G49: 615.39 | H49: 615.39 | I49: 5 | J49: 7 | K49: 2023-07-10
A50: 35 | B50: 105000001373 | C50: 台式机（贾昆）新 | D50: 2015-08-01 | E50: 6,153.85 | F50: 5,538.46 | G50: 615.39 | H50: 615.39 | I50: 5 | J50: 7 | K50: 2023-07-10
A51: 36 | B51: 105000001374 | C51: 台式机（杨立新）新 | D51: 2015-08-01 | E51: 6,153.85 | F51: 5,538.46 | G51: 615.39 | H51: 615.39 | I51: 5 | J51: 7 | K51: 2023-07-10
A52: 37 | B52: 105000001375 | C52: 台式机（栗勇）新 | D52: 2015-08-01 | E52: 6,153.85 | F52: 5,538.46 | G52: 615.39 | H52: 615.39 | I52: 5 | J52: 7 | K52: 2023-07-10
A53: 38 | B53: 105000001376 | C53: 台式机（王从喜）新 | D53: 2015-08-01 | E53: 6,153.85 | F53: 5,538.46 | G53: 615.39 | H53: 615.39 | I53: 5 | J53: 7 | K53: 2023-07-10
A54: 39 | B54: 105000001377 | C54: 台式机（林永厚）新 | D54: 2015-08-01 | E54: 6,153.85 | F54: 5,538.46 | G54: 615.39 | H54: 615.39 | I54: 5 | J54: 7 | K54: 2023-07-10
A55: 40 | B55: 105000001378 | C55: 台式机（汪璨）新 | D55: 2015-08-01 | E55: 6,153.85 | F55: 5,538.46 | G55: 615.39 | H55: 615.39 | I55: 5 | J55: 7 | K55: 2023-07-10
A56: 41 | B56: 105000001379 | C56: 台式机（化水控制室）新 | D56: 2015-08-01 | E56: 6,153.85 | F56: 5,538.46 | G56: 615.39 | H56: 615.39 | I56: 5 | J56: 7 | K56: 2023-07-10
A57: 42 | B57: 105000001380 | C57: 台式机（锅炉管控）新 | D57: 2015-08-01 | E57: 6,153.85 | F57: 5,538.46 | G57: 615.39 | H57: 615.39 | I57: 5 | J57: 7 | K57: 2023-07-10
A58: 43 | B58: 105000001381 | C58: 台式机（汽机管控）新 | D58: 2015-08-01 | E58: 6,153.85 | F58: 5,538.46 | G58: 615.39 | H58: 615.39 | I58: 5 | J58: 7 | K58: 2023-07-10
A59: 44 | B59: 105000001382 | C59: 台式机（摆丝管控）新 | D59: 2015-08-01 | E59: 6,153.85 | F59: 5,538.46 | G59: 615.39 | H59: 615.39 | I59: 5 | J59: 7 | K59: 2023-07-10
A60: 45 | B60: 105000001383 | C60: 台式机（罗文川）新 | D60: 2015-08-01 | E60: 6,153.85 | F60: 5,538.46 | G60: 615.39 | H60: 615.39 | I60: 5 | J60: 7 | K60: 2023-07-10
A61: 46 | B61: 105000001384 | C61: 台式机（董云辉）新 | D61: 2015-08-01 | E61: 6,153.85 | F61: 5,538.46 | G61: 615.39 | H61: 615.39 | I61: 5 | J61: 7 | K61: 2023-07-10
A62: 47 | B62: 105000001385 | C62: 台式机（纺丝管控）新 | D62: 2015-08-01 | E62: 6,153.85 | F62: 5,538.46 | G62: 615.39 | H62: 615.39 | I62: 5 | J62: 7 | K62: 2023-07-10
A63: 48 | B63: 105000001386 | C63: 台式机（纺丝倒班长）新 | D63: 2015-08-01 | E63: 6,153.84 | F63: 5,538.46 | G63: 615.38 | H63: 615.38 | I63: 5 | J63: 7 | K63: 2023-07-10
A64: 49 | B64: 105000001387 | C64: 台式机（热动会议室）新 | D64: 2015-08-01 | E64: 6,153.84 | F64: 5,538.46 | G64: 615.38 | H64: 615.38 | I64: 5 | J64: 7 | K64: 2023-07-10
A65: 50 | B65: 105000001388 | C65: 台式机（杨浪）新 | D65: 2015-08-01 | E65: 6,153.84 | F65: 5,538.46 | G65: 615.38 | H65: 615.38 | I65: 5 | J65: 7 | K65: 2023-07-10
A66: 51 | B66: 105000001389 | C66: 台式机（化检管控）新 | D66: 2015-08-01 | E66: 6,153.84 | F66: 5,538.46 | G66: 615.38 | H66: 615.38 | I66: 5 | J66: 7 | K66: 2023-07-10
A67: 52 | B67: 105000001390 | C67: 台式机（成品库）新 | D67: 2015-08-01 | E67: 6,153.84 | F67: 5,538.46 | G67: 615.38 | H67: =E67*0.1 -> 615.38 | I67: 5 | J67: 7 | K67: 2023-07-10
A68: 53 | B68: 105000001391 | C68: 台式机（电气运行管控）新 | D68: 2015-08-01 | E68: 6,153.84 | F68: 5,538.46 | G68: 615.38 | H68: 615.38 | I68: 5 | J68: =(K68-D68)/365-1 -> 7 | K68: 2023-07-10
A69: 54 | B69: 105000001392 | C69: 台式机（李琼）新 | D69: 2015-08-01 | E69: 6,153.84 | F69: 5,538.46 | G69: 615.38 | H69: 615.38 | I69: 5 | J69: 7 | K69: 2023-07-10
A70: 55 | B70: 105000001393 | C70: 打印机（打包区域）新 | D70: 2015-08-01 | E70: 13,846.15 | F70: 12,461.53 | G70: 1,384.62 | H70: 1,384.62 | I70: 5 | J70: 7 | K70: 2023-07-10
A71: 56 | B71: 105000001394 | C71: 打印机（打包区域）新2 | D71: 2015-08-01 | E71: 13,846.15 | F71: 12,461.53 | G71: 1,384.62 | H71: 1,384.62 | I71: 5 | J71: 7 | K71: 2023-07-10
A72: 57 | B72: 105000001399 | C72: 台式机（界外机修公用）新 | D72: 2015-08-01 | E72: 6,153.84 | F72: 5,538.46 | G72: 615.38 | H72: 615.38 | I72: 5 | J72: 7 | K72: 2023-07-10
A73: 58 | B73: 105000001400 | C73: 台式机（界内机修公用）新 | D73: 2015-08-01 | E73: 6,153.84 | F73: 5,538.46 | G73: 615.38 | H73: 615.38 | I73: 5 | J73: 7 | K73: 2023-07-10
A74: 59 | B74: 105000001401 | C74: 台式机（电仪会议室）新 | D74: 2015-08-01 | E74: 6,153.84 | F74: 5,538.46 | G74: =E74-F74 -> 615.38 | H74: 615.38 | I74: 5 | J74: 7 | K74: 2023-07-10
A75: 60 | B75: 105000001402 | C75: 台式机（装置办会议室）新 | D75: 2015-08-01 | E75: 6,153.84 | F75: 5,538.46 | G75: 615.38 | H75: 615.38 | I75: 5 | J75: 7 | K75: 2023-07-10
A76: 61 | B76: 105000001403 | C76: 台式机（严崇义）新 | D76: 2015-08-01 | E76: 6,153.84 | F76: 5,538.46 | G76: 615.38 | H76: 615.38 | I76: 5 | J76: 7 | K76: 2023-07-10
A77: 62 | B77: 105000001415 | C77: 热电楼控制室交换机（新） | D77: 2016-01-01 | E77: 5,533.90 | F77: 4,980.51 | G77: 553.39 | H77: 553.39 | I77: 5 | J77: 7 | K77: 2023-07-10
A78: 63 | B78: 105000001416 | C78: 输煤控制室交换机（新） | D78: 2016-01-01 | E78: 5,533.90 | F78: 4,980.51 | G78: 553.39 | H78: 553.39 | I78: 5 | J78: 7 | K78: 2023-07-10
A79: 64 | B79: 105000001417 | C79: 化水控制室交换机（新） | D79: 2016-01-01 | E79: 5,533.90 | F79: 4,980.51 | G79: 553.39 | H79: 553.39 | I79: 5 | J79: 7 | K79: 2023-07-10
A80: 65 | B80: 105000001418 | C80: 电气楼1#交换机（新） | D80: 2016-01-01 | E80: 8,617.23 | F80: 7,755.51 | G80: 861.72 | H80: 861.72 | I80: 5 | J80: 7 | K80: 2023-07-10
A81: 66 | B81: 105000001419 | C81: 电气楼2#交换机（新） | D81: 2016-01-01 | E81: 8,617.23 | F81: 7,755.51 | G81: 861.72 | H81: 861.72 | I81: 5 | J81: 7 | K81: 2023-07-10
A82: 67 | B82: 105000001420 | C82: 物检室交换机（新） | D82: 2016-01-01 | E82: 5,533.90 | F82: 4,980.51 | G82: 553.39 | H82: 553.39 | I82: 5 | J82: 7 | K82: 2023-07-10
A83: 68 | B83: 105000001421 | C83: 纺丝中控室交换机（新） | D83: 2016-01-01 | E83: 5,533.90 | F83: 4,980.51 | G83: 553.39 | H83: 553.39 | I83: 5 | J83: 7 | K83: 2023-07-10
A84: 69 | B84: 105000001422 | C84: 动力站交换机（新） | D84: 2016-01-01 | E84: 5,533.90 | F84: 4,980.51 | G84: 553.39 | H84: 553.39 | I84: 5 | J84: 7 | K84: 2023-07-10
A85: 70 | B85: 105000001423 | C85: 丙酮辅楼交换机（新） | D85: 2016-01-01 | E85: 8,072.36 | F85: 7,265.12 | G85: 807.24 | H85: 807.24 | I85: 5 | J85: 7 | K85: 2023-07-10
A86: 71 | B86: 105000001424 | C86: 装置楼交换机（新） | D86: 2016-01-01 | E86: 8,617.23 | F86: 7,755.51 | G86: 861.72 | H86: 861.72 | I86: 5 | J86: 7 | K86: 2023-07-10
A87: 72 | B87: 105000001425 | C87: 机修楼交换机（新） | D87: 2016-01-01 | E87: 8,617.23 | F87: 7,755.51 | G87: 861.72 | H87: 861.72 | I87: 5 | J87: 7 | K87: 2023-07-10
A88: 73 | B88: 105000001426 | C88: 电仪楼交换机（新） | D88: 2016-01-01 | E88: 8,072.36 | F88: 7,265.12 | G88: 807.24 | H88: 807.24 | I88: 5 | J88: 7 | K88: 2023-07-10
A89: 74 | B89: 105000001427 | C89: 机房3#接X交换机（新） | D89: 2016-01-01 | E89: 8,072.36 | F89: 7,265.12 | G89: 807.24 | H89: 807.24 | I89: 5 | J89: 7 | K89: 2023-07-10
A90: 75 | B90: 105000001428 | C90: 机房2#接X交换机（新） | D90: 2016-01-01 | E90: 8,072.36 | F90: 7,265.12 | G90: 807.24 | H90: 807.24 | I90: 5 | J90: 7 | K90: 2023-07-10
A91: 76 | B91: 105000001429 | C91: 机房1#接X交换机（新） | D91: 2016-01-01 | E91: 8,072.42 | F91: 7,265.18 | G91: 807.24 | H91: 807.24 | I91: 5 | J91: 7 | K91: 2023-07-10
A92: 77 | B92: 105000001456 | C92: 齐治运维操作管理系统（新2#) | D92: 2016-10-01 | E92: 111,965.82 | F92: 100,769.24 | G92: 11,196.58 | H92: 11,196.58 | I92: 5 | J92: 6 | K92: 2023-07-10
A93: 78 | B93: 105000001457 | C93: 二维条码扫描终端（新1#） | D93: 2016-10-01 | E93: 9,572.65 | F93: 8,615.38 | G93: 957.27 | H93: 957.27 | I93: 5 | J93: 6 | K93: 2023-07-10
A94: 79 | B94: 105000001458 | C94: 二维条码扫描终端（新2#） | D94: 2016-10-01 | E94: 9,572.65 | F94: 8,615.38 | G94: 957.27 | H94: 957.27 | I94: 5 | J94: 6 | K94: 2023-07-10
A95: 80 | B95: 105000001459 | C95: 二维条码扫描终端（新3#） | D95: 2016-10-01 | E95: 9,572.65 | F95: 8,615.38 | G95: 957.27 | H95: 957.27 | I95: 5 | J95: 6 | K95: 2023-07-10
A96: 81 | B96: 105000001460 | C96: DELL台式机（物检管控 新） | D96: 2016-11-01 | E96: 6,666.66 | F96: 5,999.99 | G96: 666.67 | H96: 666.67 | I96: 5 | J96: 6 | K96: 2023-07-10
A97: 82 | B97: 105000001461 | C97: DELL台式机（吴优 新） | D97: 2016-11-01 | E97: 6,666.66 | F97: 5,999.99 | G97: 666.67 | H97: 666.67 | I97: 5 | J97: 6 | K97: 2023-07-10
A98: 83 | B98: 105000001462 | C98: DELL台式机（刘文龙 新） | D98: 2016-11-01 | E98: 6,666.66 | F98: 5,999.99 | G98: 666.67 | H98: 666.67 | I98: 5 | J98: 6 | K98: 2023-07-10
A99: 84 | B99: 105000001463 | C99: DELL台式机（张其苹 新） | D99: 2016-11-01 | E99: 6,666.66 | F99: 5,999.99 | G99: 666.67 | H99: =E99*0.1 -> 666.67 | I99: 5 | J99: 6 | K99: 2023-07-10
A100: 85 | B100: 105000001464 | C100: DELL台式机（吴雁 新） | D100: 2016-11-01 | E100: 6,666.66 | F100: 5,999.99 | G100: 666.67 | H100: 666.67 | I100: 5 | J100: 6 | K100: 2023-07-10
A101: 86 | B101: 105000001465 | C101: DELL台式机（出纳室 新） | D101: 2016-11-01 | E101: 6,666.66 | F101: 5,999.99 | G101: 666.67 | H101: 666.67 | I101: 5 | J101: 6 | K101: 2023-07-10
A102: 87 | B102: 105000001466 | C102: DELL台式机（李海林 新） | D102: 2016-11-01 | E102: 6,666.66 | F102: 5,999.99 | G102: 666.67 | H102: 666.67 | I102: 5 | J102: 6 | K102: 2023-07-10
A103: 88 | B103: 105000001467 | C103: DELL台式机（郭谨 新） | D103: 2016-11-01 | E103: 6,666.66 | F103: 5,999.99 | G103: 666.67 | H103: 666.67 | I103: 5 | J103: 6 | K103: 2023-07-10
A104: 89 | B104: 105000001468 | C104: DELL台式机（谭春江 新） | D104: 2016-11-01 | E104: 6,666.66 | F104: 5,999.99 | G104: 666.67 | H104: 666.67 | I104: 5 | J104: 6 | K104: 2023-07-10
A105: 90 | B105: 105000001469 | C105: DELL台式机（袁昌明 新） | D105: 2016-11-01 | E105: 6,666.66 | F105: 5,999.99 | G105: 666.67 | H105: 666.67 | I105: 5 | J105: 6 | K105: 2023-07-10
A106: 91 | B106: 105000001470 | C106: DELL台式机（陈平 新） | D106: 2016-11-01 | E106: 6,666.66 | F106: 5,999.99 | G106: =E106-F106 -> 666.67 | H106: 666.67 | I106: 5 | J106: 6 | K106: 2023-07-10
A107: 92 | B107: 105000001471 | C107: DELL台式机（张天志 新） | D107: 2016-11-01 | E107: 6,666.66 | F107: 5,999.99 | G107: 666.67 | H107: 666.67 | I107: 5 | J107: 6 | K107: 2023-07-10
A108: 93 | B108: 105000001472 | C108: DELL台式机（姜伟东 新） | D108: 2016-11-01 | E108: 6,666.66 | F108: 5,999.99 | G108: 666.67 | H108: 666.67 | I108: 5 | J108: 6 | K108: 2023-07-10
A109: 94 | B109: 105000001473 | C109: DELL台式机（闵涛 新） | D109: 2016-11-01 | E109: 6,666.66 | F109: 5,999.99 | G109: 666.67 | H109: 666.67 | I109: 5 | J109: 6 | K109: 2023-07-10
A110: 95 | B110: 105000001474 | C110: DELL台式机（孙艳 新） | D110: 2016-11-01 | E110: 6,666.66 | F110: 5,999.99 | G110: 666.67 | H110: 666.67 | I110: 5 | J110: 6 | K110: 2023-07-10
A111: 96 | B111: 105000001475 | C111: DELL台式机（陈浩 新） | D111: 2016-11-01 | E111: 6,666.66 | F111: 5,999.99 | G111: 666.67 | H111: 666.67 | I111: 5 | J111: 6 | K111: 2023-07-10
A112: 97 | B112: 105000001476 | C112: DELL台式机（热电值班长 新） | D112: 2016-11-01 | E112: 6,666.66 | F112: 5,999.99 | G112: 666.67 | H112: 666.67 | I112: 5 | J112: 6 | K112: 2023-07-10
A113: 98 | B113: 105000001477 | C113: DELL台式机（燃运管控 新） | D113: 2016-11-01 | E113: 6,666.66 | F113: 5,999.99 | G113: 666.67 | H113: 666.67 | I113: 5 | J113: 6 | K113: 2023-07-10
A114: 99 | B114: 105000001478 | C114: DELL台式机（杨奕 新） | D114: 2016-11-01 | E114: 6,666.66 | F114: 5,999.99 | G114: 666.67 | H114: 666.67 | I114: 5 | J114: 6 | K114: 2023-07-10
A115: 100 | B115: 105000001479 | C115: DELL台式机（餐厅 新） | D115: 2016-11-01 | E115: 6,666.66 | F115: 5,999.99 | G115: 666.67 | H115: 666.67 | I115: 5 | J115: 6 | K115: 2023-07-10
A116: 101 | B116: 105000001480 | C116: DELL台式机（热电管控 新） | D116: 2016-11-01 | E116: 6,666.66 | F116: 5,999.99 | G116: 666.67 | H116: 666.67 | I116: 5 | J116: 6 | K116: 2023-07-10
A117: 102 | B117: 105000001481 | C117: DELL台式机（动力站值班长 新） | D117: 2016-11-01 | E117: 6,666.66 | F117: 5,999.99 | G117: 666.67 | H117: 666.67 | I117: 5 | J117: 6 | K117: 2023-07-10
A118: 103 | B118: 105000001482 | C118: DELL台式机（纺丝管控 新） | D118: 2016-11-01 | E118: 6,666.66 | F118: 5,999.99 | G118: 666.67 | H118: 666.67 | I118: 5 | J118: 6 | K118: 2023-07-10
A119: 104 | B119: 105000001483 | C119: DELL台式机（纺丝管控 新2#） | D119: 2016-11-01 | E119: 6,666.82 | F119: 6,000.14 | G119: 666.68 | H119: 666.68 | I119: 5 | J119: 6 | K119: 2023-07-10
A120: 105 | B120: 105000001484 | C120: DELL便携机（韦光平 新） | D120: 2016-11-01 | E120: 13,296.58 | F120: 11,966.92 | G120: 1,329.66 | H120: 1,329.66 | I120: 5 | J120: 6 | K120: 2023-07-10
A121: 106 | B121: 105000001485 | C121: DELL便携机（张丕锐 新） | D121: 2016-11-01 | E121: 13,296.58 | F121: 11,966.92 | G121: 1,329.66 | H121: 1,329.66 | I121: 5 | J121: 6 | K121: 2023-07-10
A122: 107 | B122: 105000001486 | C122: DELL便携机（尹邵勇 新） | D122: 2016-11-01 | E122: 13,296.58 | F122: 11,966.92 | G122: 1,329.66 | H122: 1,329.66 | I122: 5 | J122: 6 | K122: 2023-07-10
A123: 108 | B123: 105000001487 | C123: DELL便携机（沈建东 新） | D123: 2016-11-01 | E123: 13,296.58 | F123: 11,966.92 | G123: 1,329.66 | H123: 1,329.66 | I123: 5 | J123: 6 | K123: 2023-07-10
A124: 109 | B124: 105000001488 | C124: DELL便携机（高凌飞 新） | D124: 2016-11-01 | E124: 13,296.58 | F124: 11,966.92 | G124: 1,329.66 | H124: 1,329.66 | I124: 5 | J124: 6 | K124: 2023-07-10
A125: 110 | B125: 105000001489 | C125: DELL便携机（陈鹏 新） | D125: 2016-11-01 | E125: 13,296.58 | F125: 11,966.92 | G125: 1,329.66 | H125: 1,329.66 | I125: 5 | J125: 6 | K125: 2023-07-10
A126: 111 | B126: 105000001490 | C126: DELL便携机（尹波 新） | D126: 2016-11-01 | E126: 13,296.58 | F126: 11,966.92 | G126: 1,329.66 | H126: 1,329.66 | I126: 5 | J126: 6 | K126: 2023-07-10
A127: 112 | B127: 105000001491 | C127: DELL便携机（李毅 新） | D127: 2016-11-01 | E127: 13,296.58 | F127: 11,966.92 | G127: 1,329.66 | H127: 1,329.66 | I127: 5 | J127: 6 | K127: 2023-07-10
A128: 113 | B128: 105000001492 | C128: DELL便携机（姚金坤 新） | D128: 2016-11-01 | E128: 13,296.58 | F128: 11,966.92 | G128: 1,329.66 | H128: 1,329.66 | I128: 5 | J128: 6 | K128: 2023-07-10
A129: 114 | B129: 105000001493 | C129: DELL便携机（秦泽恩 新） | D129: 2016-11-01 | E129: 13,296.58 | F129: 11,966.92 | G129: 1,329.66 | H129: 1,329.66 | I129: 5 | J129: 6 | K129: 2023-07-10
A130: 115 | B130: 105000001494 | C130: DELL便携机（师宇 新） | D130: 2016-11-01 | E130: 13,296.58 | F130: 11,966.92 | G130: 1,329.66 | H130: 1,329.66 | I130: 5 | J130: 6 | K130: 2023-07-10
A131: 116 | B131: 105000001495 | C131: DELL便携机（杨必胜 新） | D131: 2016-11-01 | E131: 13,296.58 | F131: 11,966.92 | G131: 1,329.66 | H131: =E131*0.1 -> 1,329.66 | I131: 5 | J131: 6 | K131: 2023-07-10
A132: 117 | B132: 105000001496 | C132: DELL便携机（郭联 新） | D132: 2016-11-01 | E132: 13,296.58 | F132: 11,966.92 | G132: 1,329.66 | H132: 1,329.66 | I132: 5 | J132: =(K132-D132)/365-1 -> 6 | K132: 2023-07-10
A133: 118 | B133: 105000001497 | C133: DELL便携机（杨丽波 新） | D133: 2016-11-01 | E133: 13,296.59 | F133: 11,966.93 | G133: 1,329.66 | H133: 1,329.66 | I133: 5 | J133: 6 | K133: 2023-07-10
A134: 119 | B134: 105000001508 | C134: 外网防火墙 | D134: 2017-06-01 | E134: 240,256.41 | F134: 216,230.77 | G134: 24,025.64 | H134: 24,025.64 | I134: 5 | J134: 5 | K134: 2023-07-10
A135: 120 | B135: 105000001511 | C135: 戴尔笔记本（王学俊） | D135: 2017-08-01 | E135: 14,186.75 | F135: 12,768.07 | G135: 1,418.68 | H135: 1,418.68 | I135: 5 | J135: 5 | K135: 2023-07-10
A136: 121 | B136: 105000001512 | C136: 戴尔笔记本（杨上功） | D136: 2017-08-01 | E136: 14,186.75 | F136: 12,768.07 | G136: 1,418.68 | H136: 1,418.68 | I136: 5 | J136: 5 | K136: 2023-07-10
A137: 122 | B137: 105000001513 | C137: 戴尔台式机（前门监控1#) | D137: 2017-09-01 | E137: 6,452.99 | F137: 5,807.69 | G137: 645.30 | H137: 645.30 | I137: 5 | J137: 5 | K137: 2023-07-10
A138: 123 | B138: 105000001514 | C138: 戴尔台式机（前门监控2#) | D138: 2017-09-01 | E138: 6,452.99 | F138: 5,807.69 | G138: =E138-F138 -> 645.30 | H138: 645.30 | I138: 5 | J138: 5 | K138: 2023-07-10
A139: 124 | B139: 105000001515 | C139: 戴尔台式机（前门门禁系统1#） | D139: 2017-09-01 | E139: 5,940.17 | F139: 5,346.15 | G139: 594.02 | H139: 594.02 | I139: 5 | J139: 5 | K139: 2023-07-10
A140: 125 | B140: 105000001516 | C140: 戴尔台式机（前门门禁系统2#) | D140: 2017-09-01 | E140: 5,940.17 | F140: 5,346.15 | G140: 594.02 | H140: 594.02 | I140: 5 | J140: 5 | K140: 2023-07-10
A141: 126 | B141: 105000001517 | C141: 戴尔台式机（中门LED大屏控制） | D141: 2017-09-01 | E141: 5,940.17 | F141: 5,346.15 | G141: 594.02 | H141: 594.02 | I141: 5 | J141: 5 | K141: 2023-07-10
A142: 127 | B142: 105000001518 | C142: 戴尔台式机（消防中心监控1#） | D142: 2017-09-01 | E142: 5,940.17 | F142: 5,346.15 | G142: 594.02 | H142: 594.02 | I142: 5 | J142: 5 | K142: 2023-07-10
A143: 128 | B143: 105000001519 | C143: 戴尔台式机（消防中心监控2#) | D143: 2017-09-01 | E143: 5,940.17 | F143: 5,346.15 | G143: 594.02 | H143: 594.02 | I143: 5 | J143: 5 | K143: 2023-07-10
A144: 129 | B144: 105000001520 | C144: 戴尔台式机（后门门禁、停车系统） | D144: 2017-09-01 | E144: 5,940.17 | F144: 5,346.15 | G144: 594.02 | H144: 594.02 | I144: 5 | J144: 5 | K144: 2023-07-10
A145: 130 | B145: 105000001521 | C145: 戴尔台式机（后门j监控1#） | D145: 2017-09-01 | E145: 5,940.17 | F145: 5,346.15 | G145: 594.02 | H145: 594.02 | I145: 5 | J145: 5 | K145: 2023-07-10
A146: 131 | B146: 105000001522 | C146: 戴尔台式机（后门j监控2#) | D146: 2017-09-01 | E146: 5,940.17 | F146: 5,346.15 | G146: 594.02 | H146: 594.02 | I146: 5 | J146: 5 | K146: 2023-07-10
A147: 132 | B147: 105000001523 | C147: 戴尔台式机（宋坤） | D147: 2017-09-01 | E147: 5,940.17 | F147: 5,346.15 | G147: 594.02 | H147: 594.02 | I147: 5 | J147: 5 | K147: 2023-07-10
A148: 133 | B148: 105000001524 | C148: 戴尔台式机（张纹） | D148: 2017-09-01 | E148: 5,940.17 | F148: 5,346.15 | G148: 594.02 | H148: 594.02 | I148: 5 | J148: 5 | K148: 2023-07-10
A149: 134 | B149: 105000001525 | C149: 戴尔台式机（信息部1#) | D149: 2017-09-01 | E149: 5,940.17 | F149: 5,346.15 | G149: 594.02 | H149: 594.02 | I149: 5 | J149: 5 | K149: 2023-07-10
A150: 135 | B150: 105000001526 | C150: 戴尔台式机（信息部2#) | D150: 2017-09-01 | E150: 5,940.17 | F150: 5,346.15 | G150: 594.02 | H150: 594.02 | I150: 5 | J150: 5 | K150: 2023-07-10
A151: 136 | B151: 105000001527 | C151: 戴尔台式机（信息部3#) | D151: 2017-09-01 | E151: 5,940.17 | F151: 5,346.15 | G151: 594.02 | H151: 594.02 | I151: 5 | J151: 5 | K151: 2023-07-10
A152: 137 | B152: 105000001528 | C152: 戴尔台式机（信息部4#) | D152: 2017-09-01 | E152: 5,940.18 | F152: 5,346.16 | G152: 594.02 | H152: 594.02 | I152: 5 | J152: 5 | K152: 2023-07-10
A153: 138 | B153: 105000001529 | C153: 戴尔台式机（信息部5#) | D153: 2017-09-01 | E153: 4,273.50 | F153: 3,846.15 | G153: 427.35 | H153: 427.35 | I153: 5 | J153: 5 | K153: 2023-07-10
A154: 139 | B154: 105000001530 | C154: 戴尔台式机（信息部6#) | D154: 2017-09-01 | E154: 4,273.50 | F154: 3,846.15 | G154: 427.35 | H154: 427.35 | I154: 5 | J154: 5 | K154: 2023-07-10
A155: 140 | B155: 105000001531 | C155: 戴尔台式机（信息部7#) | D155: 2017-09-01 | E155: 4,273.51 | F155: 3,846.16 | G155: 427.35 | H155: 427.35 | I155: 5 | J155: 5 | K155: 2023-07-10
A156: 141 | B156: 105000001545 | C156: 便携机（信息部 新） | D156: 2018-06-01 | E156: 10,085.47 | F156: 9,076.92 | G156: 1,008.55 | H156: 1,008.55 | I156: 5 | J156: 4 | K156: 2023-07-10
A157: 142 | B157: 105000001546 | C157: 便携机（信息部 新2#) | D157: 2018-06-01 | E157: 10,085.47 | F157: 9,076.92 | G157: 1,008.55 | H157: 1,008.55 | I157: 5 | J157: 4 | K157: 2023-07-10
B158: 总计 | E158: =SUM(E9:E157) -> 5,550,091.52 | H158: =SUM(H3:H157) -> 601,714.24
